bitfinex-derivatives/quotes_ETHF0:USTF0_20250524
["timestamp","ask_amount","ask_price","bid_price","bid_amount"]
[1748070017793,0.78443,2549.1,2549.0,0.78444]
[1748070017997,2.12473,2549.1,2549.0,0.78444]
[1748070018302,1.3403,2549.1,2549.0,0.78444]
[1748070018693,2.12473,2549.1,2549.0,0.78444]
[1748070020200,0.78452,2548.9,2548.8,0.78452]
[1748070020401,2.18218,2549.0,2548.8,0.78452]
[1748070020599,1.3977,2548.9,2548.8,0.78452]
[1748070020803,2.0872,2548.9,2548.8,0.78452]
[1748070021299,2.0872,2548.9,2548.8,2.16362]
[1748070021900,3.2078,2549.1,2549.0,0.78446]
[1748070022504,1.47391,2549.2,2549.1,0.78443]
[1748070023410,2.08,2549.2,2548.2,5.16955]
[1748070023600,0.78446,2549.0,2548.6,1.9796]
[1748070023800,0.78446,2549.0,2548.9,0.78449]
[1748070024706,0.78449,2548.9,2548.8,1.4508]
[1748070025908,0.78448,2549.0,2548.9,0.78449]
[1748070026104,3.2078,2549.1,2548.8,0.6663]
[1748070026304,3.99224,2549.1,2549.0,0.78446]
[1748070027101,3.2078,2549.1,2549.0,0.78446]
[1748070029403,3.2078,2549.1,2549.0,1.44166]
[1748070029604,0.6895,2549.2,2549.1,0.78443]
[1748070030209,0.6895,2549.2,2549.1,1.44253]
[1748070030403,1.4739,2549.2,2549.1,0.6581]
[1748070030609,0.78443,2549.1,2549.0,0.78445]
[1748070031205,0.78448,2549.0,2548.9,0.78449]
[1748070031510,0.78445,2549.1,2549.0,0.78446]
[1748070032511,1.47392,2549.2,2548.8,4.6168]
[1748070032699,0.6895,2549.2,2549.1,0.78443]
[1748070033311,1.4739,2549.2,2549.1,0.78443]
[1748070033509,0.6895,2549.2,2549.1,0.78443]
[1748070036506,0.6895,2549.2,2549.1,2.16013]
[1748070036703,0.6895,2549.2,2549.1,2.86133]
[1748070037105,0.6912,2549.3,2549.2,0.7844]
[1748070037312,0.6912,2549.3,2549.2,2.1601]
[1748070037510,0.6872,2549.4,2549.3,0.78437]
[1748070037810,0.6872,2549.4,2549.2,1.3757]
[1748070038010,1.47155,2549.4,2549.3,0.78437]
[1748070038211,0.6872,2549.4,2549.3,0.78437]
[1748070038413,1.47154,2549.4,2549.3,0.78437]
[1748070038715,0.6872,2549.4,2549.3,0.78437]
[1748070039107,3.2078,2549.5,2549.4,0.78434]
[1748070039317,3.2078,2549.5,2549.4,2.18274]
[1748070040118,1.47429,2549.6,2549.5,0.78431]
[1748070040318,0.69,2549.6,2549.5,0.78431]
[1748070040719,2.81326,2549.7,2549.6,0.78428]
[1748070041218,2.029,2549.7,2549.6,0.78428]
[1748070041415,1.3698,2549.7,2549.6,2.86618]
[1748070042126,3.99203,2549.8,2549.7,0.78425]
[1748070042330,3.99203,2549.8,2549.7,2.16555]
[1748070042533,3.2078,2549.8,2549.7,2.16555]
[1748070044426,7.09590261,2550.4,2549.7,1.3813]
[1748070044626,0.78416,2550.0,2549.9,0.78417]
[1748070044827,0.78416,2550.0,2549.9,1.45087]
[1748070045729,1.3404,2550.2,2549.9,0.6667]
[1748070045930,2.12451,2550.2,2550.1,0.78412]
[1748070046318,0.78412,2550.1,2550.0,2.06294]
[1748070046522,1.3404,2550.1,2550.0,2.06294]
[1748070046827,2.12452,2550.1,2550.0,1.2788]
[1748070047026,2.12452,2550.1,2550.0,2.06295]
[1748070047230,1.3404,2550.1,2550.0,2.06295]
[1748070047734,1.3663,2550.3,2550.2,0.78409]
[1748070048025,0.78407,2550.3,2550.2,0.78407]
[1748070048222,1.3778,2550.3,2550.2,0.78407]
[1748070048423,2.16186,2550.3,2550.2,0.78407]
[1748070048618,2.16186,2550.3,2550.1,2.06141]
[1748070049130,0.78412,2550.1,2550.0,0.78414]
[1748070049326,2.16191,2550.2,2550.0,0.78414]
[1748070049526,1.3778,2550.1,2550.0,2.06144]
[1748070050027,0.78411,2550.2,2550.0,2.06144]
[1748070050028,0.78411,2550.2,2550.1,0.78412]
[1748070050228,0.78411,2550.2,2550.1,2.06142]
[1748070050430,0.07549626,2550.1,2549.9,3.42727]
[1748070050726,2.88063626,2550.1,2549.9,3.42727]
[1748070050923,1.3752,2550.0,2549.8,3.21369078]
[1748070051125,0.78418,2549.9,2549.8,0.00589078]
[1748070051326,1.42618,2549.9,2549.8,0.00589078]
[1748070051925,1.3752,2550.0,2549.9,0.78418]
[1748070052331,2.15935,2550.0,2549.9,0.78418]
[1748070052631,1.3752,2550.0,2549.9,0.78418]
[1748070053726,1.3752,2550.0,2549.8,0.79008078]
[1748070053931,1.3752,2550.0,2549.8,0.00589078]
[1748070053932,0.78418,2549.9,2549.8,0.00589078]
[1748070054132,0.78418,2549.9,2549.8,0.79010078]
[1748070054729,1.3752,2550.0,2549.9,0.78418]
[1748070059531,1.3752,2550.0,2549.9,1.42838]
[1748070059837,1.3752,2550.0,2549.9,2.74208]
[1748070060037,2.15935,2550.0,2549.9,2.74208]
[1748070060337,2.15935,2550.0,2549.9,0.78418]
[1748070060531,1.3752,2550.0,2549.9,0.78418]
[1748070060732,0.78418,2549.9,2549.8,0.00589078]
[1748070061336,5.78418,2549.9,2549.8,0.00589078]
[1748070061538,7.19598,2549.9,2549.8,0.00589078]
[1748070062335,0.78437,2549.3,2549.2,0.7844]
[1748070062537,20.8558,2549.5,2549.0,1.3137]
[1748070062835,2.10182,2549.2,2549.0,1.3137]
[1748070063037,1.3174,2549.1,2549.0,2.09813]
[1748070063240,0.78452,2548.8,2548.7,1.17528394]
[1748070063439,21.64132,2548.8,2548.7,1.17528394]
[1748070064343,22.27992,2548.8,2548.5,2.09642115]
[1748070064537,1.3174,2548.7,2548.5,2.09642115]
[1748070065042,1.3174,2548.7,2548.6,0.78458]
[1748070065537,1.3174,2548.7,2548.5,1.31183115]
[1748070065737,0.78458,2548.6,2548.5,1.31183115]
[1748070066239,1.4022,2548.6,2548.5,2.09644115]
[1748070066839,1.4022,2548.6,2548.5,0.79050078]
[1748070069745,3.8464,2548.8,2548.7,0.78455]
[1748070069946,5.1971,2548.8,2548.7,0.78455]
[1748070071450,4.5585,2548.8,2548.7,0.78455]
[1748070071935,4.5585,2548.8,2548.5,0.00589078]
[1748070072246,0.78458,2548.7,2548.6,0.78458]
[1748070072438,2.0533,2548.7,2548.6,0.78458]
[1748070075249,2.83785,2548.7,2548.6,0.78458]
[1748070075449,2.0533,2548.7,2548.6,0.78458]
[1748070075938,2.0533,2548.7,2548.5,0.00589078]
[1748070075939,16.1649,2549.0,2548.5,0.00589078]
[1748070076139,3.99224,2549.1,2548.5,1.96740078]
[1748070076451,3.99224,2549.1,2548.9,0.78447]
[1748070076640,1.3492,2549.0,2548.9,0.78447]
[1748070077656,2.13366,2549.0,2548.9,0.78447]
[1748070078154,2.13366,2549.0,2548.8,2.1774]
[1748070078455,2.13366,2549.0,2548.9,0.78449]
[1748070080859,17.66089078,2549.3,2549.2,0.7844]
[1748070081156,17.66089078,2549.3,2548.8,2.0966]
[1748070081359,0.78445,2549.1,2548.8,2.0966]
[1748070081552,1.3807,2549.0,2548.9,0.78449]
[1748070081759,18.44527078,2549.3,2549.2,0.7844]
[1748070081959,17.66089078,2549.3,2549.2,0.7844]
[1748070083159,0.00589078,2549.3,2549.2,0.7844]
[1748070086859,0.01132158,2549.3,2549.2,0.7844]
[1748070089874,0.78442,2549.2,2549.1,0.78443]
[1748070090166,1.3576,2549.2,2549.1,0.78443]
[1748070091272,0.01132158,2549.3,2549.2,0.7844]
[1748070091871,1.36892158,2549.3,2549.2,0.7844]
[1748070092071,1.36892158,2549.3,2548.9,0.78448]
[1748070092274,0.78444,2549.1,2549.0,0.78445]
[1748070092673,2.82794,2549.1,2549.0,0.78445]
[1748070092875,2.0435,2549.1,2549.0,0.78445]
[1748070093171,6.03575,2549.1,2549.0,0.78446]
[1748070093370,0.78447,2549.0,2548.9,0.78448]
[1748070093571,2.13687,2549.0,2548.9,0.78449]
[1748070093871,1.3524,2549.0,2548.9,0.78449]
[1748070096169,1.3524,2549.0,2548.8,0.78451]
[1748070096170,2.13686,2549.0,2548.8,0.78451]
[1748070096370,2.13686,2549.0,2548.9,0.78449]
[1748070096571,3.8937,2549.1,2549.0,0.78446]
[1748070096771,21.5467,2549.1,2549.0,0.78446]
[1748070097476,3.8937,2549.1,2549.0,0.78446]
[1748070097774,0.6859,2549.1,2549.0,0.78446]
[1748070097975,18.3399,2549.1,2549.0,0.78446]
[1748070098773,0.6859,2549.1,2549.0,0.78446]
[1748070099780,1.47033,2549.1,2549.0,0.78446]
[1748070099980,0.78446,2549.0,2548.9,0.78447]
[1748070100279,1.47034,2549.1,2548.9,0.78447]
[1748070100475,1.47034,2549.1,2549.0,0.78446]
[1748070100878,1.47033,2549.1,2549.0,0.78446]
[1748070101281,0.6859,2549.1,2549.0,0.78446]
[1748070101680,1.47033,2549.1,2549.0,0.78446]
[1748070102583,0.6859,2549.1,2549.0,0.78446]
[1748070103781,1.47033,2549.1,2548.9,0.78447]
[1748070103982,0.6859,2549.1,2548.9,0.78449]
[1748070104583,1.47033,2549.1,2548.9,0.78449]
[1748070105579,1.47033,2549.1,2549.0,0.78446]
[1748070107591,0.6859,2549.1,2549.0,0.78446]
[1748070108093,1.47033,2549.1,2549.0,0.78446]
[1748070108294,0.6859,2549.1,2549.0,0.78446]
[1748070108490,1.47033,2549.1,2549.0,0.78446]
[1748070109493,0.6859,2549.1,2549.0,0.78446]
[1748070110193,1.47033,2549.1,2549.0,0.78446]
[1748070110693,0.6859,2549.1,2549.0,0.78446]
[1748070110993,19.7392,2549.1,2549.0,0.78446]
[1748070111199,1.3993,2549.1,2549.0,0.78446]
[1748070111399,19.0533,2549.1,2549.0,0.78446]
[1748070111600,0.66062158,2549.3,2548.9,1.96123]
[1748070111800,19.68562158,2549.3,2549.2,0.7844]
[1748070112102,2.03162158,2549.3,2549.2,0.7844]
[1748070112297,19.68562158,2549.3,2549.2,0.7844]
[1748070112795,2.03162158,2549.3,2549.2,0.7844]
[1748070113102,20.46999158,2549.3,2549.1,1.2994]
[1748070113300,20.46999158,2549.3,2549.1,2.08383]
[1748070113301,1.371,2549.2,2549.1,2.08383]
[1748070115907,0.78443,2549.1,2549.0,1.3456]
[1748070116706,2.15542,2549.2,2549.0,2.13003]
[1748070118705,0.78443,2549.1,2549.0,2.13003]
[1748070120205,0.78443,2549.1,2549.0,1.3456]
[1748070120502,0.78446,2549.0,2548.9,1.2848]
[1748070120701,1.9588,2549.0,2548.9,0.78449]
[1748070120906,18.31462158,2549.3,2548.7,2.6924]
[1748070120907,0.66062158,2549.3,2548.8,1.96131]
[1748070121103,17.653,2549.2,2548.8,3.30641]
[1748070121302,17.653,2549.2,2549.1,0.78443]
[1748070122507,0.01132158,2549.3,2549.2,0.7844]
[1748070123710,0.01132158,2549.3,2549.2,2.0967]
[1748070123906,0.01132158,2549.3,2549.2,3.43926786]
[1748070127303,0.01132158,2549.3,2549.2,6.64706786]
[1748070130211,0.01132158,2549.3,2549.2,11.64706786]
[1748070130411,0.01132158,2549.3,2549.2,6.64706786]
[1748070145823,0.01132158,2549.3,2549.2,7.8223518]
[1748070146822,0.01132158,2549.3,2549.2,6.5100518]
[1748070148622,0.01132158,2549.3,2549.2,5.33476786]
[1748070153330,0.01132158,2549.3,2549.2,6.5100518]
[1748070154130,0.01132158,2549.3,2549.2,7.8400518]
[1748070154922,0.01132158,2549.3,2549.2,8.22426228]
[1748070156624,0.65521464,2550.1,2549.2,12.43986228]
[1748070156829,1.4061,2549.8,2549.7,0.78426]
[1748070158330,1.4061,2549.8,2549.7,2.77162786]
[1748070159531,0.6611,2549.9,2549.8,0.78422]
[1748070159733,0.6611,2549.9,2549.8,2.13872]
[1748070159926,1.3282,2550.0,2549.9,0.78419]
[1748070160126,1.9785,2550.0,2549.9,0.78419]
[1748070161129,1.3282,2550.0,2549.9,17.59975786]
[1748070165237,1.3282,2550.0,2549.9,18.94965786]
[1748070166939,1.3282,2550.0,2549.9,17.59975786]
[1748070167141,1.3282,2550.0,2549.9,2.12675786]
[1748070168841,1.3282,2550.0,2549.9,0.78419]
[1748070171245,1.3282,2550.0,2549.9,2.14332315]
[1748070172533,1.3282,2550.0,2549.9,4.11432315]
[1748070172740,1.304,2550.2,2550.1,0.78413]
[1748070173645,1.3607,2550.3,2550.2,0.7841]
[1748070176965,0.6404,2550.4,2550.3,0.78407]
[1748070178865,2.11154,2550.4,2550.3,0.78407]
[1748070180162,1.3275,2550.4,2550.3,0.78407]
[1748070180663,0.78407,2550.3,2550.2,1.47709]
[1748070180867,0.78416,2550.0,2549.9,16.63035034]
[1748070181062,0.78416,2550.0,2549.9,1.17835034]
[1748070181769,0.78416,2550.0,2549.9,0.00589078]
[1748070182969,26.63696,2550.0,2549.9,0.00589078]
[1748070183270,0.78429,2549.6,2549.5,1.17245956]
[1748070183470,0.78428,2549.7,2549.5,1.95675956]
[1748070183666,2.7377,2549.9,2549.5,1.95675956]
[1748070183669,1.3768,2549.6,2549.5,1.95675956]
[1748070184775,1.3768,2549.6,2549.5,0.7843]
[1748070186674,0.00589078,2549.8,2549.7,0.78426]
[1748070186973,1.37849078,2549.8,2549.7,0.78426]
[1748070187673,19.02549078,2549.8,2549.7,0.78426]
[1748070187973,1.37849078,2549.8,2549.7,0.78426]
[1748070188162,19.02549078,2549.8,2549.7,0.78426]
[1748070188573,1.37849078,2549.8,2549.7,0.78426]
[1748070190364,2.16271078,2549.8,2549.6,1.44667]
[1748070190567,0.78426,2549.7,2549.6,1.44667]
[1748070190768,0.78429,2549.6,2549.5,0.78431]
[1748070191475,0.78427,2549.7,2549.6,0.78428]
[1748070192478,0.78429,2549.6,2549.5,0.7843]
[1748070192972,17.648,2549.7,2549.3,2.03929078]
[1748070193176,18.43227,2549.7,2549.6,0.78429]
[1748070195471,17.648,2549.7,2549.3,0.66139078]
[1748070195677,0.78435,2549.4,2549.3,1.44576078]
[1748070196071,0.78435,2549.4,2549.3,0.66139078]
[1748070196271,0.78435,2549.4,2549.3,0.00589078]
[1748070197583,0.78435,2549.4,2549.3,0.79027078]
[1748070198377,20.8558,2549.7,2549.3,0.00589078]
[1748070198570,20.8558,2549.7,2549.6,0.78429]
[1748070198571,3.2078,2549.7,2549.6,0.78429]
[1748070198770,20.8568,2549.7,2549.6,0.78429]
[1748070198978,3.2078,2549.7,2549.6,0.78429]
[1748070199578,3.2078,2549.7,2549.6,2.78809]
[1748070200381,3.99206,2549.7,2549.6,2.78809]
[1748070200887,3.2078,2549.7,2549.6,2.78809]
[1748070201876,0.78434,2549.5,2549.4,0.78434]
[1748070202081,0.7843,2549.6,2549.5,0.7843]
[1748070202283,2.13617,2549.7,2549.6,0.78429]
[1748070202685,0.6722,2549.7,2549.6,0.78429]
[1748070203278,0.6722,2549.7,2549.6,1.48219]
[1748070203984,1.45646,2549.7,2549.6,1.48219]
[1748070205088,0.6722,2549.7,2549.6,1.48219]
[1748070206687,1.45646,2549.7,2549.6,1.48219]
[1748070207393,0.6722,2549.7,2549.6,1.48219]
[1748070207581,0.00589078,2549.8,2549.7,0.78426]
[1748070207791,0.00589078,2549.8,2549.7,2.05966]
[1748070208795,0.00589078,2549.8,2549.7,3.42141025]
[1748070209992,0.00589078,2549.8,2549.7,6.62921025]
[1748070210996,7.8e-07,2549.8,2549.7,11.62921025]
[1748070211993,7.8e-07,2549.8,2549.7,13.18870467]
[1748070213796,7.8e-07,2549.8,2549.7,11.62921025]
[1748070213998,7.8e-07,2549.8,2549.7,22.06421025]
[1748070214690,7.8e-07,2549.8,2549.7,6.62921025]
[1748070214890,7.8e-07,2549.8,2549.7,22.06421025]
[1748070215386,7.8e-07,2549.8,2549.7,23.23453352]
[1748070216895,7.8e-07,2549.8,2549.7,22.06421025]
[1748070224004,7.8e-07,2549.8,2549.7,27.06421025]
[1748070225101,7.04e-06,2549.8,2549.7,27.06421025]
[1748070225400,7.04e-06,2549.8,2549.7,22.06421025]
[1748070226893,7.04e-06,2549.8,2549.7,22.06221025]
[1748070227694,7.04e-06,2549.8,2549.7,23.2317859]
[1748070228200,1.406,2550.1,2550.0,0.78416]
[1748070229194,1.406,2550.1,2550.0,1.47606]
[1748070229396,1.406,2550.1,2550.0,6.04561025]
[1748070231196,3.2078,2550.7,2550.3,0.78407]
[1748070231392,4.5588,2550.7,2550.6,0.78398]
[1748070231600,5.34275,2550.7,2550.6,0.78398]
[1748070232100,4.5588,2550.7,2550.6,0.78398]
[1748070232295,0.65521464,2550.8,2550.6,0.78398]
[1748070232501,2.06411464,2550.8,2550.7,0.78395]
[1748070232798,2.84803464,2550.8,2550.7,0.78395]
[1748070235804,2.19282,2550.8,2550.7,0.78395]
[1748070237594,1.4089,2550.8,2550.7,0.78395]
[1748070237799,0.6408,2550.9,2550.8,0.78392]
[1748070238102,2.0401,2550.9,2550.8,0.78392]
[1748070238404,2.855,2551.2,2551.1,0.78383]
[1748070238608,19.739,2551.2,2551.1,0.78383]
[1748070239103,0.78387,2551.1,2551.0,0.78383]
[1748070240298,0.7839,2551.0,2550.9,0.78387]
[1748070243203,0.78385,2551.1,2551.0,0.78382]
[1748070243506,0.78395,2550.8,2550.7,0.78392]
[1748070244102,0.78395,2550.7,2550.6,0.00589078]
[1748070244311,0.78395,2550.7,2550.6,0.78987078]
[1748070245308,5.78395,2550.7,2550.6,0.00589078]
[1748070245607,0.78395,2550.7,2550.6,0.78987078]
[1748070246511,2.16903,2550.8,2550.7,0.78395]
[1748070248508,1.3851,2550.8,2550.7,0.78395]
[1748070249109,0.7051,2550.8,2550.7,0.78395]
[1748070250813,0.7051,2550.8,2550.6,0.69609078]
[1748070251114,1.3975,2550.7,2550.6,1.48005078]
[1748070252117,2.18144,2550.7,2550.6,1.48005078]
[1748070252312,2.18144,2550.7,2550.6,0.00589078]
[1748070253214,2.18144,2550.7,2550.6,0.78987078]
[1748070253417,1.3975,2550.7,2550.6,0.78987078]
[1748070255519,1.3975,2550.7,2550.6,2.19277078]
[1748070256519,1.3975,2550.7,2550.6,3.55301249]
[1748070258009,2.18144,2550.7,2550.6,3.55301249]
[1748070258718,2.18144,2550.7,2550.6,2.76903249]
[1748070258919,2.18144,2550.7,2550.6,1.36613249]
[1748070259115,2.84104,2550.7,2550.6,1.36613249]
[1748070259921,2.84104,2550.7,2550.6,2.15011249]
[1748070260121,2.18144,2550.7,2550.6,2.15011249]
[1748070260318,2.18144,2550.7,2550.6,3.42851249]
[1748070260513,1.48904,2550.8,2550.7,0.78394]
[1748070260819,20.40954,2550.8,2550.7,0.78394]
[1748070261623,1.9846,2550.8,2550.7,2.14418171]
[1748070261828,1.2795,2550.8,2550.7,3.42258171]
[1748070262324,0.78387,2551.0,2550.9,0.78388]
[1748070262520,18.42487,2551.0,2550.9,0.78388]
[1748070262929,0.78388,2550.9,2550.8,2.72719]
[1748070263130,0.78388,2550.9,2550.8,1.44879]
[1748070264426,18.42485,2551.0,2550.9,0.78386]
[1748070264629,3.86301464,2551.2,2550.8,3.98746211]
[1748070264820,4.64682464,2551.2,2550.8,3.98746211]
[1748070265126,3.86301464,2551.2,2550.8,2.02767211]
[1748070265320,2.09723,2551.1,2551.0,0.78384]
[1748070265827,1.3134,2551.1,2550.9,1.36277211]
[1748070266028,2.09724,2551.1,2551.0,0.78385]
[1748070266227,2.09724,2551.1,2551.0,2.14662211]
[1748070267229,20.92329626,2551.2,2551.1,0.78382]
[1748070267527,20.92329626,2551.2,2551.1,1.42052]
[1748070267727,20.8478,2551.2,2551.1,1.42052]
[1748070268427,3.2078,2551.2,2551.1,1.42052]
[1748070269335,3.2078,2551.2,2551.1,2.7833137]
[1748070271231,20.6078,2551.5,2551.4,0.78373]
[1748070271534,38.2478,2551.5,2551.4,0.78373]
[1748070271935,39.03152,2551.5,2551.3,0.78374]
[1748070272236,17.64,2551.4,2551.3,0.78375]
[1748070272432,18.42373,2551.4,2551.3,0.78375]
[1748070272631,17.64,2551.4,2551.3,0.78375]
[1748070273533,20.6078,2551.5,2551.4,0.78373]
[1748070273534,3.2078,2551.5,2551.4,0.78373]
[1748070274229,0.65521464,2551.6,2551.5,0.7837]
[1748070275535,0.65521464,2551.6,2551.5,3.9915]
[1748070275736,0.65521464,2551.6,2551.5,5.35227003]
[1748070276131,0.65521464,2551.9,2551.5,5.35227003]
[1748070276335,0.65521464,2551.9,2551.8,0.78361]
[1748070277536,0.65521464,2551.9,2551.8,3.99141]
[1748070278830,5.44334365,2552.9,2552.5,0.78339]
[1748070279029,1.57932707,2552.9,2552.8,3.9911]
[1748070279242,1.93442973,2553.2,2553.1,0.78321]
[1748070279440,1.93442973,2553.2,2553.1,19.39901]
[1748070279441,1.38823466,2553.2,2553.1,19.39901]
[1748070279637,2.25647012,2553.4,2553.3,0.78314]
[1748070280232,2.25647012,2553.4,2553.3,16.19114]
[1748070281440,1.57932707,2553.6,2553.3,15.408]
[1748070281640,1.2721,2553.7,2553.4,4.5531]
[1748070281842,5.26293,2553.7,2553.4,16.7493]
[1748070282042,2.05513,2553.7,2553.4,20.7402]
[1748070282242,2.05513,2553.7,2553.4,4.5531]
[1748070282539,1.2721,2553.7,2553.4,5.3362]
[1748070282738,1.2721,2553.7,2553.4,4.5531]
[1748070283143,0.78305,2553.6,2553.4,4.5531]
[1748070283342,1.2721,2553.5,2553.4,4.5531]
[1748070283938,1.2721,2553.5,2553.1,3.2078]
[1748070284236,0.78313,2553.3,2553.1,3.2078]
[1748070284438,1.2721,2553.2,2553.1,3.99099]
[1748070284642,2.05526,2553.2,2553.1,3.2078]
[1748070284943,0.78325,2552.9,2552.8,3.2078]
[1748070285139,0.6662,2553.1,2552.6,1.4097]
[1748070285342,0.78326,2552.9,2552.7,0.78331]
[1748070285851,2.05954,2553.0,2552.6,1.4097]
[1748070286143,2.05955,2553.0,2552.7,0.78332]
[1748070286645,1.2763,2553.0,2552.6,1.4097]
[1748070286842,1.2763,2553.0,2552.9,0.78325]
[1748070287044,2.05953,2553.0,2552.8,0.78328]
[1748070289048,2.05953,2553.0,2552.9,0.78325]
[1748070289648,1.2763,2553.0,2552.9,0.78325]
[1748070290450,2.05954,2553.0,2552.9,0.78325]
[1748070290750,1.2763,2553.0,2552.9,0.78325]
[1748070291142,1.2763,2553.0,2552.8,0.78327]
[1748070291339,0.78332,2552.7,2552.6,3.2078]
[1748070293151,0.78332,2552.7,2552.6,3.99115]
[1748070293851,2.06731,2552.8,2552.7,0.78332]
[1748070294860,1.284,2552.8,2552.7,0.78332]
[1748070295157,2.06729,2552.8,2552.7,0.78332]
[1748070298651,1.284,2552.8,2552.7,0.78332]
[1748070301046,1.284,2552.8,2552.7,2.14472]
[1748070303658,0.6687,2552.9,2552.8,0.78328]
[1748070303856,0.07549626,2553.0,2552.9,0.78325]
[1748070304059,0.07549626,2553.0,2552.9,1.47975]
[1748070304357,1.9997,2553.3,2553.2,0.78316]
[1748070305664,1.9997,2553.3,2553.2,3.99096]
[1748070306669,1.311,2553.3,2553.2,3.99096]
[1748070307963,1.311,2553.3,2553.2,5.3892164]
[1748070308469,0.7035,2553.4,2553.3,0.78306]
[1748070308773,1.347,2553.5,2553.3,1.399]
[1748070308973,2.0022,2553.7,2553.6,0.78297]
[1748070309267,0.6659,2553.8,2553.7,3.99073]
[1748070310168,0.6683,2554.0,2553.9,0.78287]
[1748070310368,2.0666,2554.0,2553.9,0.78287]
[1748070310664,0.6659,2554.1,2554.0,0.78284]
[1748070310863,2.0666,2554.3,2554.2,0.78278]
[1748070311866,0.6659,2554.5,2554.4,0.78272]
[1748070312068,0.6659,2554.5,2554.4,3.99052]
[1748070312666,0.6369,2554.9,2554.4,3.2078]
[1748070312969,2.11607,2554.9,2554.8,0.7826]
[1748070313163,0.7826,2554.8,2554.7,0.78261]
[1748070313366,0.78267,2554.6,2554.5,0.78267]
[1748070313561,3.2078,2555.0,2554.5,1.9567]
[1748070313763,0.78264,2554.7,2554.6,0.78265]
[1748070313961,2.6663,2554.9,2554.4,5.94202696]
[1748070314265,0.78278,2554.2,2554.1,4.37737565]
[1748070314459,0.78278,2554.2,2554.1,1.16957565]
[1748070314659,0.78281,2554.1,2554.0,1.55949442]
[1748070314857,1.9572,2553.9,2553.6,3.06770137]
[1748070315061,0.783,2553.5,2553.4,0.00587901]
[1748070315862,5.783,2553.5,2553.4,0.00587901]
[1748070316768,6.4383,2553.5,2553.4,0.00587901]
[1748070316975,7.1314,2553.5,2553.4,0.00587901]
[1748070317469,40.3954,2553.5,2553.4,0.00587901]
[1748070318372,43.6032,2553.5,2553.4,0.00587901]
[1748070319466,43.67869626,2553.5,2553.4,0.00587901]
[1748070322378,0.78314,2553.1,2552.9,0.78316]
[1748070322571,0.78315,2553.0,2552.9,0.78316]
[1748070322772,1.358,2553.0,2552.8,1.3538]
[1748070323073,0.78318,2552.9,2552.8,2.13699]
[1748070323272,2.14117,2553.0,2552.8,2.137]
[1748070323461,0.78318,2552.9,2552.8,2.137]
[1748070323665,1.358,2552.9,2552.8,2.137]
[1748070324568,1.358,2552.9,2552.8,2.13701]
[1748070325275,1.358,2552.9,2552.8,0.78321]
[1748070325673,2.1412,2552.9,2552.7,3.99103]
[1748070325868,0.78321,2552.8,2552.7,3.2078]
[1748070326069,0.78324,2552.7,2552.6,0.00587901]
[1748070326476,2.08064,2552.7,2552.6,0.00587901]
[1748070326774,0.6816,2552.8,2552.6,0.00587901]
[1748070327082,0.00583976,2553.1,2552.7,3.2078]
[1748070327271,0.00583976,2553.1,2553.0,0.78315]
[1748070328879,0.00583976,2553.1,2553.0,3.99095]
[1748070330976,5.78895976,2553.1,2553.0,3.2078]
[1748070331279,0.78319,2552.9,2552.8,0.7832]
[1748070331482,2.05863976,2553.1,2552.7,6.71639165]
[1748070331483,0.78321,2552.8,2552.7,6.71639165]
[1748070331672,0.78321,2552.8,2552.7,5.34592]
[1748070332280,0.7832,2552.9,2552.8,0.78321]
[1748070332587,0.78321,2552.8,2552.7,5.34592]
[1748070333081,0.78321,2552.8,2552.7,4.5627]
[1748070333482,0.78321,2552.8,2552.7,3.2078]
[1748070333670,0.78324,2552.7,2552.6,0.00587901]
[1748070333876,19.07944,2552.7,2552.6,0.00587901]
[1748070334276,20.35324,2552.7,2552.6,0.00587901]
[1748070335584,2.72824,2552.7,2552.6,0.00587901]
[1748070335779,2.72824,2552.7,2552.4,3.2078]
[1748070335780,0.7833,2552.5,2552.4,3.2078]
[1748070336081,0.78333,2552.4,2552.3,0.40523]
[1748070336283,2.69893,2552.4,2552.3,0.40523]
[1748070336492,1.9156,2552.4,2552.3,0.40523]
[1748070336676,1.2738,2552.4,2552.3,4.39639]
[1748070337077,2.05713,2552.4,2552.3,3.61303]
[1748070338084,2.05713,2552.4,2552.3,4.39639]
[1748070340786,0.6712,2552.7,2552.4,0.78331]
[1748070340980,2.0781,2552.7,2552.6,0.78327]
[1748070341171,0.78327,2552.6,2552.5,2.06138]
[1748070342781,2.86136,2552.7,2552.6,0.78327]
[1748070343083,3.2078,2552.9,2552.8,0.78321]
[1748070343282,3.2078,2552.9,2552.7,2.70661]
[1748070343587,0.78321,2552.8,2552.7,1.43171]
[1748070346179,0.78321,2552.9,2552.8,0.78318]
[1748070346380,0.78316,2553.0,2552.9,0.78315]
[1748070346581,0.78316,2553.0,2552.9,3.99095]
[1748070350989,0.85865626,2553.0,2552.9,3.99095]
[1748070352291,2.21135626,2553.0,2552.9,3.99095]
[1748070354997,0.85865626,2553.0,2552.9,3.99095]
[1748070360100,0.07549626,2553.0,2552.9,3.99095]
[1748070361302,0.07549626,2553.0,2552.9,6.63818964]
[1748070362808,0.6876,2553.7,2553.3,1.95761]
[1748070363104,4.67218144,2554.1,2554.0,0.78284]
[1748070363501,0.78284,2554.0,2553.9,3.99066]
[1748070363707,2.08294,2554.0,2553.9,3.2078]
[1748070364004,0.7829,2553.8,2553.7,0.78881901]
[1748070364206,0.7829,2553.8,2553.7,0.00587901]
[1748070364400,0.78306,2553.3,2553.2,1.55643007]
[1748070364794,5.78306,2553.3,2553.2,1.55643007]
[1748070364990,8.99086,2553.3,2553.2,1.55643007]
[1748070365293,10.29096,2553.3,2553.2,1.55643007]
[1748070366404,0.78312,2553.1,2553.0,0.00587901]
[1748070367304,2.15722,2553.1,2553.0,0.00587901]